{"text_format":"1","workbook":"xlsx","n_sheets":4,"sheets":["Help Sheet","Budget","Guest List","InviteCalculator"],"not_rendered":{"charts":0,"images":4,"macros":1,"external_links":0,"defined_names":6,"comments":0,"pivot_tables":0},"unopened":[],"bounds":{"document_bytes":16777216,"sheet_cells":100000,"rows_first":2000,"rows_last":500,"rows_between":2000,"halvings":0,"cell_chars":16384,"cell_head_chars":4096},"cells_cut":0,"cells_raw":0,"read":"whole","date_system":"1900"}

{"sheet":"Help Sheet","index":0,"n_rows":17,"n_cols":3,"rows_kept":17,"cut":false,"hidden":false,"merged":[[1,1,3,9],[16,2,23,10],[4,2,14,10]]}
[]
["Quick Guide","Welcome to the excel workbook that makes your tough decisions easier. Wedding can be SO stressful, but the bridge and groom should not have to spend their energy sorting through guest lists and calculating costs of everything they want. Our workbook assists you in these decisions in two different ways. "]
[]
[]
[null,"Guest List","Our Guest List page is where you enter your guests and their addresses, then use the sort button at the top of the column to place that guest in alphabetical order in the list, or to sort by addresses. The main feature of this page is the \"invite evaluation\" command button, which brings up a form where you select a guest, then answer a series of questions about that guest's relationship to the bride and groom. The answers to these questions are associated with a point system and the points are summed at the end of the series of questions and places the guest and their address on the \"InviteCalculator\" sheet in the \"invite\" column to suggest you invite them to the wedding, the \"announcement\" column to suggest you send them an announcement, or the \"manual choice\" column, where the bride/groom manually places that guest on either list. If, based on your responses, the selected guest should not be considered, they will be deleted from the list. "]
[]
[]
[]
[]
[]
[]
[]
[]
[]
[]
[]
[null,"Budget","Our budget sheet helps you calculate how much of your budget you are spending on each item, such as a DJ, a venue, and whatever else you decide to add. To add an item to the budget table, click on the \"Add Item\" button and fill out the boxes you have information for, then select \"Add to Budget\". All of the values on the sheet will automatically update whenever a value changes. The three boxes at the top left corner of the page display your initial budget, the total spendings, and the difference between the two (budget left availabe to spend) and turns green if you have money left to spend and red if you have spent more than you budgeted. "]

{"sheet":"Budget","index":1,"n_rows":54,"n_cols":10,"rows_kept":54,"cut":false,"hidden":false,"merged":[]}
[]
["Initial Budget: ",{"$f":"SUM(F8:F48)","v":14200}]
["Total Cost: ",{"$f":"SUM(H8:H48)","v":13450}]
["Budget left:",{"$f":"B2-B3","v":750},"Yay! You have extra honeymoon cash"]
[]
[]
["Item","Company","phone #","email","website","budgeted ","% of Budget","actual cost ","% of total","notes"]
["Bride's Gown","David's Bridal Centralia",null,null,"www.davidsbridal.com",1000,{"$f":"F8/$B$2","v":7.0422535211267609E-2},800,{"$f":"Table1[[#This Row],[actual cost ]]/$B$3","v":5.9479553903345722E-2}]
["Cake","Mom's friend ?",null,null,null,400,2.8169014084507043E-2,null,{"$f":"Table1[[#This Row],[actual cost ]]/$B$3","v":0}]
["Caterer","Bonanza BBQ",null,null,null,2000,0.14084507042253522,1500,{"$f":"Table1[[#This Row],[actual cost ]]/$B$3","v":0.11152416356877323}]
["DJ","Dad's friend","360-584-8192","dj@dj.com","dj.com",400,2.8169014084507043E-2,500,{"$f":"Table1[[#This Row],[actual cost ]]/$B$3","v":3.717472118959108E-2}]
["Invitations","Costco ",null,null,"costco.com/photocenter",700,4.9295774647887321E-2,450,{"$f":"Table1[[#This Row],[actual cost ]]/$B$3","v":3.3457249070631967E-2}]
["Photography","Steve Schmidt",null,null,null,1200,8.4507042253521125E-2,1000,{"$f":"Table1[[#This Row],[actual cost ]]/$B$3","v":7.434944237918216E-2},"hasn't set an official price "]
["Venue","The Barn on Jackson \t\t\t\t","360-269-2843",null,"https://thebarnonjackson.com",3000,0.21126760563380281,4000,{"$f":"Table1[[#This Row],[actual cost ]]/$B$3","v":0.29739776951672864},"Address: 3605 Jackson Highway Chehalis WA 98532. Contact: Kari Windsor"]
["Videographer","Haven Carr","360-791-9101",null,null,500,3.5211267605633804E-2,200,{"$f":"Table1[[#This Row],[actual cost ]]/$B$3","v":1.4869888475836431E-2}]
["rings ","smith's",null,"smiths.com",null,5000,null,5000,{"$f":"Table1[[#This Row],[actual cost ]]/$B$3","v":0.37174721189591076},"haven't got them yet "]
[null,null,null,null,null,null,0,null,{"$f":"Table1[[#This Row],[actual cost ]]/$B$3","v":0}]
[null,null,null,null,null,null,0,null,{"$f":"Table1[[#This Row],[actual cost ]]/$B$3","v":0}]
[null,null,null,null,null,null,0,null,{"$f":"Table1[[#This Row],[actual cost ]]/$B$3","v":0}]
[null,null,null,null,null,null,0,null,{"$f":"Table1[[#This Row],[actual cost ]]/$B$3","v":0}]
[null,null,null,null,null,null,0,null,{"$f":"H21/$B$3","v":0}]
[null,null,null,null,null,null,0,null,{"$f":"H22/$B$3","v":0}]
[null,null,null,null,null,null,0,null,{"$f":"H23/$B$3","v":0}]
[null,null,null,null,null,null,0,null,{"$f":"H24/$B$3","v":0}]
[null,null,null,null,null,null,0,null,{"$f":"H25/$B$3","v":0}]
[null,null,null,null,null,null,0,null,0]
[null,null,null,null,null,null,0,null,0]
[null,null,null,null,null,null,0,null,0]
[null,null,null,null,null,null,0,null,0]
[null,null,null,null,null,null,0,null,0]
[null,null,null,null,null,null,0,null,0]
[null,null,null,null,null,null,0,null,0]
[null,null,null,null,null,null,0,null,0]
[null,null,null,null,null,null,0,null,0]
[null,null,null,null,null,null,0,null,0]
[null,null,null,null,null,null,0,null,0]
[null,null,null,null,null,null,0,null,0]
[null,null,null,null,null,null,0,null,0]
[null,null,null,null,null,null,0,null,0]
[null,null,null,null,null,null,0,null,0]
[null,null,null,null,null,null,0,null,0]
[null,null,null,null,null,null,0,null,0]
[null,null,null,null,null,null,0,null,0]
[null,null,null,null,null,null,0,null,0]
[null,null,null,null,null,null,0,null,0]
[null,null,null,null,null,null,0,null,0]
[null,null,null,null,null,null,0,null,0]
[null,null,null,null,null,null,0,null,0]
[null,null,null,null,null,null,0,null,0]
[null,null,null,null,null,null,0,null,0]
[null,null,null,null,null,null,0,null,0]
[null,null,null,null,null,null,0,null,0]
[null,null,null,null,null,null,0,null,0]
[null,null,null,null,null,null,0,null,0]

{"sheet":"Guest List","index":2,"n_rows":244,"n_cols":5,"rows_kept":244,"cut":false,"hidden":false,"merged":[[3,1,3,2],[1,1,1,2],[7,4,8,13]]}
[]
[null,"Possible Guest List"]
[]
[null,"CONTACT INFO"]
[null,"Name(s)","Address"]
[null,"Alexa Travis","3316 W Newton Ave Visalia, CA 93291"]
[null,"Ally Turkington","1919 Evergreen Pk Dr Sw olympia wa 98502"]
[null,"Amanda Rentzell","5707 57th St NW, Gig Harbor WA 98335",null,"You can find your results on the InviteCalculator page, or watch the row be deleted from the table if that person should not be invited. "]
[null,"Amanda Rickey","33601 39th Ave SW, Federal Way, WA 98023"]
[null,"Amanda Rickey","33601 39th Ave SW, Federal Way, WA 98023 "]
[null,"Amy & Cassie Mullin","3203 Long Lake Dr SE Lacey, WA 98503"]
[null,"Amy Rawlings ","Give in person "]
[null,"Andy and Sam Wilkie","4419 Covey St. SE, Olympia, WA 98501"]
[null,"Barbara Rawlings","4606 Archer Dr SE Lacey WA, 98513"]
[null,"Becky Stander Stander","4611 s 3500 W c208 Roy 84067"]
[null,"Bill & Jill Kerr","3086 W 8525 S, West Jordan UT 84088"]
[null,"Bonni Stratton","3131 Sylvan Dr W. University Place, WA 98466"]
[null,"Bonnie Johnson","401 Highland View Dr. Knoxville, TN 37920"]
[null,"Brandon and Alyshia Shellhart","1100 Boulevard Rd, SE, Olympia, WA 98501-2647"]
[null,"Brent and Kathy Kohler","4444 Village DR. SE, Olympia, WA 98501-4724"]
[null,"Brett & Heather Bartlett","PO Box 571 E Olympia, WA 98501"]
[null,"Brian & Dani Johnson","2028 Arab Dr SE Tumwater, WA 98501"]
[null,"Brian & Jennifer Fuller","2605 Farmer Lane SE, Olympia, WA 98501"]
[null,"Brian & Mandi Aldrich","4111 41st Loop SE, Olympia, WA 98501"]
[null,"Brian & Shiree Shirley","2214 E. 3000 N., Sugar City ID 83445"]
[null,"Brook Swenson","4842 Rural Rd. Tumwater WA 98502 apt. 208"]
[null,"Bryce & Elizabeth Brown","1910 80th ave se Tumwater wa 98501"]
[null,"Bryce & Kelly Schneider","2838 Burnaby Park Loop SE, Olympia, WA 98501"]
[null,"Cade & Sierra Otton","8558 Nesbit Ave N Apt 412 Seattle, WA 89103"]
[null,"Caleb Blackhill"]
[null,"Callie Goldsby","2035 Arab Dr SE Tumwater, WA 98501"]
[null,"Camra Erickson","600 Fleetwood Dr, Ore City, TX 75683"]
[null,"Carol & Zeke Schmus ","94-643 Hikianalia Pl, Mililani, Hawaii 96789"]
[null,"Casey & Stacey Lowe"]
[null,"Cathy Hitchman","13711 Loreece Ln SW. Tenino. WA 98589"]
[null,"Celia Scruton ","3200 capital mall dr sw #0E-301"]
[null,"Chad and Kaylene Stander","418 N 3550 W, Layton UT 84041"]
[null,"Chris and Mandy Madill ","2308 Cedar Park Loop SE, Olympia, WA 98501-4374"]
[null,"Cielo Wilson","8418 201st E, Spanaway, WA 98387"]
[null,"Cindy & Sam Kight","15139 Athey Loop, Woodbridge, VA  22193"]
[null,"Clair and Sharon Ferris","5521 Cheri Estates Dr. SE, Olympia, WA 98501-4732"]
[null,"Claire Bates","659 N 300 E Apt. 2, Provo, UT 84606"]
[null,"Cody Mustain ","3712 Carnegie Dr SE, Olympia WA 98503"]
[null,"Colbi Stewart"," 3525 36th ave NW Olympia WA 98502"]
[null,"Colin & Chrissy Rawlings","80011 B General Patton St, Fort Drum, NY 13603"]
[null,"Colin & Chrissy Rawlings ","80011 B General Patton St, Fort Drum, NY 13603"]
[null,"Colton and Hinalei Blyle","2426 Leach Ct. SE, Olympia, WA 98501-3168"]
[null,"Connor Campbell","1850 N. University #202, Provo, UT 84604"]
[null,"Courtney & Brandt Vavricka","1207 Aspen Ave Provo, UT 84604"]
[null,"Curtis & Jeanette Mack"]
[null,"Cynthia Blyle","2521 53rd Way SE, Olympia, WA 98501-4784"]
[null,"Dakoda Keller","4930 Donovan Dr SE Apt D"]
[null,"Dallon & Monica Brown","1861 53rd Loop SE., Olympia, WA 98501-8003"]
[null,"Dan & Jaimie Wilder","13439 Old HWY 99 SE. Tenino, WA 98501"]
[null,"Dan & Lois Rhodes","295 E 5350 S Ogden, UT 84405"]
[null,"Danicka and Bryce Werner","2032 Arab Dr SE Tumwater, WA 98501"]
[null,"Daniel and Kathleen Conrad","2629 Ballantine Dr. SE, Olympia, WA 98501"]
[null,"Darlene & Jared King","13345 Ducat CR, Corpus Christi, TX 78418"]
[null,"Darrin & Rebecca Grondel","198 S 1230 W Hurricane, UT 84737"]
[null,"Dave and Lindsay Carter","5017 Siskiyou Loop SE, Olympia, WA 98501"]
[null,"David and Simone Harris","5025 Chambers Creek Loop SE, Olympia, WA 98501-7130"]
[null,"Debbie & Chad Crowther"]
[null,"Debbie & Curtis Olsen","6394 S. Fernbrook, Taylorsville, UT 84129"]
[null,"Derek & Tina Ivanhoff","6837 Desperado Dr SE, Tumwater, WA 98501 "]
[null,"Devon & Marilyn Knutson","27030 Serenity Lane, Caldwell ID 83607"]
[null,"Dillon Stricklett","915 Tartan Dr SW Tumwater WA 98501"]
[null,"Doris Johnson","2201 Little Valley Road. Blaine, TB 37709)"]
[null,"Doug and Lindy Badger","3139 60th Loop SE, Olympia, WA 98501"]
[null,"Drake Keyes","8729 Pacific Ave SE Unit C, Olympia, WA 98512"]
[null,"Eddie and Shanda Tomsik","3016 57th Ave SE, Olympia, WA 98501"]
[null,"Egi Kacani","1237 Cross St Ogden, UT 84404"]
[null,"Eleanor Winkler","2330 Woodfield Loop SE, Olympia, WA 98501"]
[null,"Eliza Lutz","1844 W 2000 S, Apt. A, Roosevelt, UT 84066"]
[null,"Elliot Olsen","801 W 2150 N Provo, UT 84604"]
[null,"Emma Johnson","201 W 1st St. Rigby, ID 83442"]
[null,"Eric and Linda Green","2203 Tandem Ct, SE, Olympia, WA 98501"]
[null,"Erin and Ashley Daley","5117 Arlington Ct. SE, Tumwater, WA 98501-4798"]
[null,"Ethan Chrisope ","1219 N Garden St Apt. A, Bellingham, WA 98225"]
[null,"Fran Rader","2405 Alberta Dr. Knoxville, TN 37920"]
[null,"Geoff Hulsey","In person"]
[null,"Greg & Connie White","216 Tennessee Rd, Winlock"]
[null,"Greg & Renee Bert","8011 Deschutes Ct. S.E, Tumwater, WA 98501"]
[null,"Greg & Tammy Newbill","4622 Ferndale Court SE, Olympia, WA 98501"]
[null,"Hannah Barrett","4628 72nd St Ct E Tacoma, WA 98443"]
[null,"Hannah Gagley","36656 55th Pl S. Auburn, WA 98001"]
[null,"Hayley Powers ","8382 Atlanta Avenue Apt. C, Huntington Beach, CA 92646"]
[null,"Heather & Jeff Christensen","In person"]
[null,"Heidi Seldomridge"]
[null,"James & Connie Charette","9429 Delphi Rd SW, Olympia, WA 98512"]
[null,"James & Danielle Corbin"]
[null,"James and Tara Dixon","2110 18th Ave SE, Olympia, WA 98501-2611"]
[null,"James Dixon"]
[null,"James Hansen ","7421 Zircon Drive SW Lakewood WA 98498"]
[null,"Janet & Greg French","7618 Lowland Lane. Knoxville, TN 37920"]
[null,"Jared & Wendy Burbidge","4433 Briggs Dr SE Olympia, Washington 98501-4930"]
[null,"Jason & Angela Donovan","823 Forrestal PL NE, Lacey, WA 98516"]
[null,"Jen Nelson ","7814 Ne 91st Ave Vancouver, WA 98662"]
[null,"Jenny Hernandez","271E 4300S. Ogden, UT 8445"]
[null,"Jess Nelson ","1808 64th Way SE, Tumwater, WA 98501"]
[null,"Jessie & Logan James"]
[null,"Jim Click","2616 Hidden Cove Ln Olympia, WA 98502"]
[null,"Jo Tower","1504 S Mildred #204, Tacoma WA 98465"]
[null,"John & Juli Skeen","3208 30th Ave. SE, Olympia, WA 98501"]
[null,"Jolene and Max Stander","3758 w 4225 s., West Haven UT 84401"]
[null,"Jonathon and Tiffany Paynter","2521 53rd Way SE, Olympia, WA 98501-4784"]
[null,"Judy & Rocky Nelson ","22609 North 32nd Street Phoenix, AZ, 85050"]
[null,"Julia and Jacob Price","1180 24th St Apt. 3 Ogden. UT 84401"]
[null,"Julie Hass","4235 Cashmere Dr NE Lacey WA"]
[null,"Julie White","119 Elma Dr N Centralia, WA 98531"]
[null,"Kaden Kirkham","75-6008 Alii Dr Apt 122, Kailua-Kona, HI, 96740"]
[null,"Kaitlyn Stander","2654 W 4100 S  Roy, UT 84067"]
[null,"Kara Tuterow","4054 West Coneflower Lane San Tan Valley, AZ 85142"]
[null,"Karyn & Patti Challender","203 Idaho ST. S, Rainier, WA 98576"]
[null,"Kate Gose","3300 21st Ave SW Apt. D-01 Olympia, WA 98512"]
[null,"Kate Powers ","6956 Peach Tree Road, Carlsbad 92011"]
[null,"Katie & Tom Turcotte","1445 Kaiser Rd Sw Olympia WA 98512"]
[null,"Katy Nelson ","119 Elma Dr N Centralia, WA 98531"]
[null,"Ken & Evylin Hodges","5010 S 3325 W, Roy UT 84067"]
[null,"Kenny Apple","3026 70th Way SW, Olympia, WA 98512"]
[null,"Kenny Turner"]
[null,"Kimberly Smack-Rush","6018 Darby Court SE Tumwater, WA 98501"]
[null,"Kirk & Mardee Beatty","4549 Trenton Lp. SE, Olympia, WA 98501"]
[null,"Kodi Smart ","4441 Fir Tree Road SE"]
[null,"Kristin Jewell","1615 13th Ave SW Olympia WA 98502"]
[null,"Kurt & Amy Gress","3746 Cassie Dr SW, Tumwater, WA 98512"]
[null,"Kurt & Karen Poch","11354 Abbotsford Lane, Sandy, UT 84070"]
[null,"Kyle & Allison Klein","4420 Village Dr. SE, Olympia, WA 98501"]
[null,"Kyle and Krista Kisebach","3510 Wilderness Dr. SE, Olympia, WA 98501-4940"]
[null,"Kyle Jones","3916 Hoadly St SE, Tumwater, 98501"]
[null,"Kyler & Mason Zabel","6908 Foster Dr SW Olympia, WA 98512"]
[null,"Lana and Brian Gibson","5928 Dalton Road, Fayetteville, NC 28314"]
[null,"Larry and Cindy Dunn","4713 Canady Ct. SE, Olympia, WA 98501"]
[null,"Larry, Nancy & Sam Brubaker","3410 Gravely Beach Loop, Olympia, WA 98502"]
[null,"Laurie Raben","3105 Denali Lane SE, Olympia, WA 98501"]
[null,"Leah & Dan Dever","341 S 200 W,Providence UT 84332-9722"]
[null,"Lee & Anne Wojnar"]
[null,"Leia Davis","1118 Legion way Olympia, WA 98501"]
[null,"Leonard Smith","3712 Carnegie Dr SE, Olympia WA 98503"]
[null,"Linda Cotton"]
[null,"Lindsay and Devin Watkins","3088 Quincy Ave, Ogden UT, 84403"]
[null,"Lucky Baccus","4038 Rock Maple Lane NW Q202 Olympia WA 98502"]
[null,"Mac and Anne Rainwater","2215 Kildane Way SE, Olympia, WA 98501-3056"]
[null,"Madison & Lane Spenker","11 Alpine Way, Longview, WA 98632"]
[null,"Margaret Palmer","137 Oakdale Dr. Russellville, KY 42276"]
[null,"Marjean & Sid Otton","6835 6th Ave SW Tumwater, Washington 98501-5405"]
[null,"Mark & Kerri Wright","4521 Trenton Lp SE Olympia, WA 98501"]
[null,"Mark & Lindsey Hopkins","3434 Merryman Place SE, Olympia, WA 98501"]
[null,"MaryJo Williams","4324 Lakeview Ct SE. Lacey, WA 98503"]
[null,"Matthew and Audrienne Shellhart","4549 Juli Ct. SE, Olypmia, WA 98501-4763"]
[null,"Max Stander","2092 west 5900 south, Roy UT 84067"]
[null,"Mckayla Murphy ","1090 W betz rd Apt 23211, Cheney, WA 99004"]
[null,"Meagan and Tanner Griffin ","1975 W. Joseph Acres Rd, Kaysville UT 84037"]
[null,"Megan Atkinson","1925 W 9525 S, South Jordan, UT. 84095"]
[null,"Megan Breckenridge","4842 Rural Road SW Apt 208"]
[null,"Megan Card","7512 91st Ave SE. Olympia, WA 98513"]
[null,"Melissa & Chad Stussy","Tumwater High School "]
[null,"Melyssa Nocis","12206 SE 218th Ct Kent, WA 983031"]
[null,"Michael & Pam McCormick"]
[null,"Michelle & Eric Shipley ","4530 Village Springs Run. Dunwoody, GA 30338"]
[null,"Michelle and Reed Montierth","2793 E. 2100 N., Layton UT 84040"]
[null,"Michelle Montierth ","2793 E. 2100 N., Layton UT 84040"]
[null,"Mickey Risenmay","10103 167th PL NE Redmond, WA 98052"]
[null,"Mignon and James Quigley","1707 Bison Drive Williston\\, ND 58801"]
[null,"Mike and Helen Stewart","4944 Siskiyou Lp SE, Olympia,  WA 98501`"]
[null,"Mike and Judy Bigelow","3702 Holiday Dr. SE, Olympia, WA 98501"]
[null,"Mike Clark"]
[null,"Monica & Paul Chase","522 N. 100 E, Mendon, UT 84325"]
[null,"Monte & Kathy Knutson","508 Brickstone DR, Apex, NC 27502"]
[null,"Morgan Ziegler","In person"]
[null,"Mr & Mrs Don Schmus","94-643 Hikianalia Pl, Mililani, Hawaii 96789"]
[null,"Mr. & Mrs. James Monday","518 Bridgeway Dr. Maryville, TN 37801"]
[null,"Nicole & Gordon Call","921 W. 3150 S, Syracuse, UT 84075"]
[null,"Nicole Boysen","4862 Rural Rd SW #108 Tumwater WA 98502"]
[null,"Nicole Howard","904 4th St, Cheney, WA 99004"]
[null,"Pat DeNeui","1425 Arab Dr SE Tumwater, WA 98501"]
[null,"Patti Challender","203 Idaho Ave N. Rainier, WA 98576-1222"]
[null,"Patty Kress","1935 65th Ave. SE., Tumwater, WA 98501"]
[null,"Paul & Stephanie Strophy","In person"]
[null,"Paulette Vigoren","325 W 5000 S Ogden, UT, 84405"]
[null,"Penny Beard","2917 24th Ave. SE, Olympia, WA 98501"]
[null,"Phil & Catrina Murphy"]
[null,"Phillip And Joleen Harlan","4706 Canady Ct. SE, Olympia, WA 98501"]
[null,"Ray Knutson","Summerfield Retirement 911 North 800 West, Orem UT 84057"]
[null,"Rebecca Ciolino","6101 Majestic Way, Mountain Green, Ut 84050"]
[null,"Rebecca Stander-Ciolino","4611 s 3500 W c208 Roy 84067"]
[null,"Regina & Jim Brown","7139 Cavalier Loop SW, Olympia WA 98512"]
[null,"Reid & Kathy Bates","9636 Springer Lake Lane SE Olympia, Washington 98501"]
[null,"Renee Hodges","4395 S 325 E, Ogden UT 84405-5815"]
[null,"Rich & Allisha Marlatt","1807 Yelm Hwy SE, Olympia, WA 98501"]
[null,"Roger and Lynne Forbush","5032 Laura Lane SE, Olympia, WA 98501"]
[null,"Roland & Valerie Stander","Box 23, Bear River City UT 84301"]
[null,"Roman and Patrice Daniels-Brown","1725 52nd Ave SE, Olympia, WA 98501-4718"]
[null,"Ron & Cheri Campbell","638 West 1870 South, Payson, UT 84651"]
[null,"Ron Slosson"]
[null,"Russell and Kristin Brown","4601 Sydney Rose Ct. SE, Olympia, WA 98501-6013"]
[null,"Ryan and Allison Stander","3915 S 2275 W, Roy, UT 84067"]
[null,"Ryan and Johanna Johnson","2519 Cedar Park Loop SE, Olympia, WA 98501"]
[null,"Sara Stratton","1308 Boise St. Tacoma, WA 98466"]
[null,"Savannah Combe","4631 W 4450 S. West Haven, UT 84401"]
[null,"Sax Rodgers","In person"]
[null,"Scott & Jeannie Carlson","4212 amber CT SE Olympia wa 98501"]
[null,"Scott & Kim Howard"]
[null,"Scott and Meagan Latimer","2602 10th Ct SE, Olympia, WA 98501"]
[null,"Scott Greno","2188 Canyon View Dr, Layton Utah 84040"]
[null,"Sean Rawlings","9849 Brooks Lane SE"]
[null,"Shannon Crowl","140 SW McFadden Ave, Chehalis WA 98532"]
[null,"Shaylynn King","717 3rd St Apt. B Ogden, UT 84404"]
[null,"Sheilani and Jeremy Knighton","399 S 1075 E, Smithfield Utah 84335"]
[null,"Shirley Ryan-Roberts","PO Box 51234. 713 Crest Forrest Rd. Knoxville, TN 37923"]
[null,"Stan & Kristi Peck","303 S. 800 W., Payson UT 84561-2422"]
[null,"Star Ramirez","5432 57th loop Se Lacey, WA 98503"]
[null,"Stephanie and Steve Combe","4631 W. 4450 S., West Haven, UT 84401"]
[null,"Stephen & Celeste Daniels-Brown","2516 Cedar Park Loop SE, Olympia, WA 98501-6241"]
[null,"Steve & Kelli Schmidt"," 7044 Mirasett St Sw Tumwater, WA 98512"]
[null,"Sunny Bieber","1925 Langridge Ave NW, Olympia WA 98502"]
[null,"Tammy & Lloyd Wood","9360 N. 5600 W. Tremonton, UT 84337-8553"]
[null,"Teresa Jackson","1518 Skyline Ridge Lane SW, Tumwater, WA 98512"]
[null,"Teri Harvey","2654 W 4100 S., Roy, UT 84067"]
[null,"Terry and Nenita Coons","3235 Wilderness Dr. SE, Olympia, WA 98501"]
[null,"Thomas & Wendy Price","691 south 825 East, Layton, UT 84041"]
[null,"Tiffani Raimondi","210 30th St. Ogden, UT 84401"]
[null,"Tim & Sally Otton","2027 80th Ave SE Tumwater, Washington 98501"]
[null,"Todd & Brandy Flahaut","3905 Antsen Rd SW, Tumwater, WA 98512"]
[null,"Tom & Debi Fraker"]
[null,"Tom & Elizabeth Nelson ","6210 Maple Meadows Ln NE Olympia, WA 98516"]
[null,"Tom & Laurie Heichelbech","2039 Arab Dr SE Tumwater, WA 98501"]
[null,"Tom Rawlings ","3707 Carnegie Dr SE, Olympia WA 98503"]
[null,"Tom Tower "]
[null,"Tom Westbrook","In person"]
[null,"Tommy & Krista Lowe"]
[null,"Tony and Ashley Combe","809 6th St., Rupert, ID 83350"]
[null,"Tracie Powers ","6956 Peach Tree Road, Carlsbad 92011"]
[null,"Trent Stander","305 E 4300 S Ogden, UT 84405"]
[null,"Trevor Montierth","75-6008 Alii Dr Apt 122, Kailua-Kona, HI, 96740"]
[null,"Tristan and Jodi Bernard","1234 Kiely Dr SE, Olympia, WA 98501-2763"]
[null,"Trixie Stander","2188 Canyon View Dr, Layton Utah 84040"]
[null,"Tyler & Becky Zobell","2609 Morse-Merryman Rd. SE, Olympia, WA 98501"]
[null,"Tyler Combe","20211 Pecan Ln Queen Creek, AZ 85142"]
[null,"Tyson Stander","1458 W 1750 N, Layton, UT 84041"]
[null,"Vanessa Crisp","8307 Bordeaux Lp SW. Olympia, WA 98512"]
[null,"Venn & Cathy Peterson","1905 54th Lane SE, Olympia, WA 98501"]
[null,"Wally Kee","1404 77th Trail SE, Tumwater, WA 98501"]
[null,"William & Josy Basel","5425 Boulevard Ext SE, Olympia, WA 98501-4703"]
[null,"Zack & Alida Abbott","2024 Arena Court SE Olympia, Washington 98501"]

{"sheet":"InviteCalculator","index":3,"n_rows":7,"n_cols":9,"rows_kept":7,"cut":false,"hidden":false,"merged":[]}
[]
[]
[]
[null,"Invite",null,null,"Announcement",null,null,"Manual Choice"]
[null,"Angela Celedon ","10605 16th Ave Ct S Apt. 14, Tacoma, WA 98444",null,"Amy Rau","2316 Westlake Dr. SE, Lacey, WA 98503 ",null,"Bettye Phifer","3086 W 8525 S, West Jordan UT 84088"]
[null,"Andrew Sanchez ","4419 Covey St. SE, Olympia, WA 98501",null,null,null,null,"Aaron & Tricia Jelcick","PO Box 921 Tenino, WA 98589"]
[null,"Abby & Scott Carter","3516 Buckingham Court SE, Olympia, WA 98501",null,null,null,null,"Al & Lucy Ewing","3316 W Newton Ave Visalia, CA 93291"]